Cogmind - Beta 11.1 @@@ ROGUE MODE // 2022.12.09 @ 13:02:24 Player: omewwes Result: Destroyed by G-47 Trooper with Particle Gun Performance ------------- Evolutions (3) 1500 Regions Visited (5) 1000 Robots Destroyed (93) 465 Value Destroyed (2776) 2776 Prototype IDs (1) 20 Alien Tech Used (0) 0 Bonus (327) 327 TOTAL SCORE: 6088 Bonus ------- High Alert Combat Kills 337 Follower Combat Kills 81 Friendly Fire -91 Cogmind --------- Core Integrity 0/700 Matter 256/300 Energy 99/100 System Corruption 2% Temperature Cool (9) Movement Core (50) Location -7/Factory Parts ------- > --- POWER (1) -------- (None) > --- PROPULSION (2) --- (None) > --- UTILITY (7) ------ (None) > --- WEAPON (3) ------- (None) > --- INVENTORY (5) ---- Light Treads Light Treads Large Matter Pod (150) Visual Processing Unit Cooled Pulse Rifle Peak State ------------ > --- POWER ------------ Light Deuterium Engine > --- PROPULSION ------- Advanced Treads Advanced Treads > --- UTILITY ---------- Cryofiber Web Advanced Heat Sink Large Storage Unit Advanced Targeting Computer Weapon Cycler Heavy Armor Plating > --- WEAPON ----------- Cooled Pulse Rifle Cooled Pulse Rifle Cooled Pulse Rifle > --- INVENTORY -------- Light Treads Light Treads Light Treads Light Treads Medium Treads Huge Storage Unit Large Matter Pod Visual Processing Unit Seismic Detector Kinecellerator Long-range Tractor Beam Cooled Pulse Rifle Minigun High-powered Shotgun Flak Gun [Rating: 49] Favorites ----------- Power Improved Ion Engine Engine Improved Ion Engine Power Core Light Nuclear Core Propulsion Advanced Treads Treads Advanced Treads Utility Large Storage Unit Device Cryofiber Web Storage Large Storage Unit Processor Improved Terrain Scan Processor Protection Insulated Plating Weapon Assault Rifle Energy Gun Cooled Pulse Rifle Ballistic Gun Assault Rifle Ballistic Cannon Improved Light Cannon Build | -11 -10 -10 -9 -8 -7 ------- Run | Scr Mat Min Mat Mat Fac Slots Evolved 6 | . . . 2 2 2 Power . | . . . . . . Propulsion . | . . . . . . Utility 5 | . . . 2 2 1 Weapon 1 | . . . . . 1 Parts Attached 86 | 6 3 2 6 14 55 Power 8 | 1 1 . 1 1 4 Engine 5 | 1 1 . 1 1 1 Core 3 | . . . . . 3 Reactor . | . . . . . . Propulsion 12 | 2 . . 2 2 6 Treads 12 | 2 . . 2 2 6 Leg . | . . . . . . Wheel . | . . . . . . Hover . | . . . . . . Flight . | . . . . . . Utility 44 | 1 . 2 1 7 33 Device 23 | . . 1 . 5 17 Storage 3 | 1 . 1 . . 1 Processor 3 | . . . 1 1 1 Hackware . | . . . . . . Protection 15 | . . . . 1 14 Artifact . | . . . . . . Weapon 22 | 2 2 . 2 4 12 Energy Gun 5 | 1 . . . . 4 Energy Cannon . | . . . . . . Ballistic Gun 14 | 1 2 . 2 2 7 Ballistic Cannon 3 | . . . . 2 1 Launcher . | . . . . . . Special Weapon . | . . . . . . Impact Weapon . | . . . . . . Slashing Weapon . | . . . . . . Piercing Weapon . | . . . . . . Special Melee Weapon . | . . . . . . Unidentified Prototypes 1 | . . . . . 1 Parts Lost 26 | . . . 2 5 19 Power 6 | . . . . 1 5 Propulsion 7 | . . . 2 2 3 Utility 9 | . . . . 2 7 Weapon 4 | . . . . . 4 Highest Loss Streak 8 | . . . 2 5 8 To Critical Strikes . | . . . . . . Average Slot Usage (%) 89 | . 85 97 76 75 96 Engine 6 | . 14 14 11 1 4 Core 1 | . . . . . 2 Treads 17 | . 28 28 21 17 14 Device 20 | . . 11 11 23 25 Storage 8 | . 14 14 11 9 6 Processor 5 | . . . . 7 8 Protection 6 | . . . . 5 10 Energy Gun 2 | . 8 . . . 4 Ballistic Gun 12 | . 20 28 22 2 10 Ballistic Cannon 4 | . . . . 8 5 Naked Turns 11 | . . . . . 11 Heaviest Build 59 | 11 14 30 32 52 59 Greatest Support 50 | 40 40 40 40 43 50 Greatest Overweight (x) 2 | . . . 1 1 2 Average Overweight (x) . | . . . . . . Largest Inventory Capacity 15 | 8 8 15 15 15 15 Average Capacity 14 | 6 8 11 15 15 14 Most Carried 15 | 2 8 10 12 14 15 Average Carried 11 | . 4 8 9 11 13 Final Capacity 15 | 8 8 15 15 15 5 Final Carried 14 | 2 8 10 9 14 5 Class Distribution -------------------- 24% | Mutant 21% | Scavenger-Mutant 21% | Gunner 11% | Scavenger-Skirmisher 10% | Scavenger-Tank 6% | Tank 3% | Scavenger-Gunner Dominant Class ---------------- Mutant | -10/Materials Mutant | -10/Mines Scavenger-Mutant | -9/Materials Scavenger-Mutant | -8/Materials Gunner | -7/Factory Resources | -11 -10 -10 -9 -8 -7 ----------- Run | Scr Mat Min Mat Mat Fac Matter Collected 3160 | 204 103 251 185 593 1824 Remotely 497 | . . . . . 497 Salvage Created 3137 | . 119 59 258 730 1971 Parts 182 | . 11 6 17 39 109 Haulers Intercepted 3 | . 1 . . 1 1 Recyclers Shooed 4 | . 2 . . 2 . Parts Field Recycled . | . . . . . . Retrieved Matter . | . . . . . . Parts Self-Destructed . | . . . . . . Prevented . | . . . . . . Kills | -11 -10 -10 -9 -8 -7 ------- Run | Scr Mat Min Mat Mat Fac Combat Hostiles Destroyed 58 | . 3 . 7 12 36 Guns 31 | . 3 . 7 1 20 Cannons 25 | . . . . 10 15 AOE 1 | . . . . 1 . Classes Destroyed 14 | . 3 1 3 4 3 Worker 10 | . . 1 1 . 8 Builder 5 | . . . 1 2 2 Tunneler 3 | . 1 1 . 1 . Hauler 3 | . 1 . . 1 1 Recycler 10 | . . . . 3 7 Operator 1 | . . . . . 1 Watcher 3 | . . . . 2 1 Swarmer 11 | . 3 . 3 . 5 Grunt 33 | . . . 3 8 22 Duelist 4 | . . . . 1 3 Protector 1 | . . . . . 1 Sentry 4 | . . . 1 2 1 Programmer 4 | . . . . . 4 Heavy 1 | . . . . 1 . Best Kill Streak 7 | . 3 2 4 4 7 Combat Bots Only 5 | . 3 . 3 3 5 Max Kills in Single Turn 2 | . 1 1 1 1 2 Gunslinging . | . . . . . . Exploded 1 | . . . . 1 . Melee . | . . . . . . Uniques/NPCs Destroyed . | . . . . . . Combat | -11 -10 -10 -9 -8 -7 -------- Run | Scr Mat Min Mat Mat Fac Damage Taken 5651 | . 88 194 526 1308 3535 Core 1136 | . 13 8 78 324 713 Absorbed by Shields . | . . . . . . Core Remaining (%) 78 | 100 . 91 80 41 . Volleys Fired 243 | . 14 13 26 69 121 Largest 3 | . 2 2 2 2 3 Hottest 100 | . 60 40 40 69 100 Shots Fired 520 | . 28 26 52 81 333 Gun 378 | . 28 26 52 20 252 Cannon 142 | . . . . 61 81 Launcher . | . . . . . . Special . | . . . . . . Kinetic 467 | . 16 26 52 81 292 Thermal 53 | . 12 . . . 41 Explosive . | . . . . . . Electromagnetic . | . . . . . . Robot Hit Streak 24 | . 6 7 15 9 24 Robot Miss Streak 8 | . 4 6 8 3 7 Penetration Max 1 | . . . . 1 . Secondary Targets 2 | . . . 1 . 1 Max Gunslinging Chain 1 | . . . 1 . 1 Shots Hit Robots 351 | . 15 11 29 56 240 Core Hits 241 | . 7 4 14 26 190 Critical Kills 1 | . . . . . 1 Critical Parts Destroyed . | . . . . . . Critical Strikes 7 | . . . . 3 4 Burn 1 | . . . . . 1 Destroy 1 | . . . . . 1 Blast 5 | . . . . 3 2 Melee Attacks . | . . . . . . Impact . | . . . . . . Slashing . | . . . . . . Piercing . | . . . . . . Sneak Attacks . | . . . . . . Combat Hostiles . | . . . . . . Follow-up Attacks . | . . . . . . Damage Inflicted 7880 | . 177 246 414 2409 4634 Guns 4487 | . 177 246 414 201 3449 Cannons 3325 | . . . . 2140 1185 Explosions 68 | . . . . 68 . Melee . | . . . . . . Ramming . | . . . . . . Kinetic 7106 | . 89 246 414 2341 4016 Thermal 706 | . 88 . . . 618 Explosive 68 | . . . . 68 . Electromagnetic . | . . . . . . Impact . | . . . . . . Slashing . | . . . . . . Piercing . | . . . . . . Highest Corruption 2 | . . . . . 2 Average Corruption 1 | . . . . . 1 Corruption Purged . | . . . . . . Corruption Blocked . | . . . . . . Effects 17 | . . . . . 17 Message Errors 1 | . . . . . 1 Matter Fused 10 | . . . . . 10 Heat Flow Errors 3 | . . . . . 3 Energy Discharges 1 | . . . . . 1 Data Loss (minor) 1 | . . . . . 1 Misfires 1 | . . . . . 1 Overload Shots 1 | . . . . . 1 Overflow Damage 191 | . . . . 185 6 Projectiles 181 | . . . . 175 6 Explosions 10 | . . . . 10 . Melee . | . . . . . . Knockbacks 29 | . . . . 15 14 Impact . | . . . . . . Kinetic 29 | . . . . 15 14 Secondary . | . . . . . . Self-Inflicted Damage 189 | . . . . 189 . Shots 2 | . . . . 2 . Rammed . | . . . . . . Targets Rammed . | . . . . . . Kicked . | . . . . . . Crushed . | . . . . . . Highest Temperature 381 | . . 8 . 145 381 Average Temperature 85 | . . 4 . 34 130 Received Heat Transfer 2019 | . . 60 171 360 1428 Effects 2 | . . . . . 2 Energy Bleed 2 | . . . . . 2 Siege Activations . | . . . . . . Robots Corrupted . | . . . . . . Combat Hostiles . | . . . . . . Parts Fried . | . . . . . . Impact Corruptions . | . . . . . . Robots Melted 1 | . . . . . 1 Combat Hostiles 1 | . . . . . 1 Parts Melted 1 | . . . . . 1 Heat Transferred 1252 | . 200 . . . 1052 Parts Sabotaged . | . . . . . . Parts Stolen . | . . . . . . Parts Stripped . | . . . . . . Power Chain Reactions . | . . . . . . Missiles Intercepted . | . . . . . . Alert | -11 -10 -10 -9 -8 -7 ------- Run | Scr Mat Min Mat Mat Fac Peak Influence 938 | . 115 201 298 363 938 Initial 123 | . . 44 78 40 123 Average 318 | . 73 127 182 191 446 Maximum Alert Level 3 | . . 1 1 1 3 Low Security (%) 34 | 100 100 59 56 49 13 Level 1 33 | . . 40 43 50 29 Level 2 29 | . . . . . 51 Level 3 2 | . . . . . 4 Level 4 . | . . . . . . Level 5 . | . . . . . . High Security . | . . . . . . Max Security . | . . . . . . Squads Dispatched 13 | . . . . 1 12 Investigation 3 | . . . . . 3 Extermination 4 | . . . . . 4 Reinforcement 4 | . . . . 1 3 Assault 2 | . . . . . 2 Garrison . | . . . . . . Intercept . | . . . . . . Searches Triggered . | . . . . . . Construction Impeded 1 | . . . . . 1 Haulers Reinforced . | . . . . . . Active Scanning Responses . | . . . . . . Cargo Convoy Interrupts . | . . . . . . Stealth | -11 -10 -10 -9 -8 -7 --------- Run | Scr Mat Min Mat Mat Fac Distress Signals 3 | . . . . 1 2 Communications Jammed . | . . . . . . Distress Signals . | . . . . . . Times Spotted 96 | . 4 5 10 20 57 Peak Tracking Total 7 | . 2 3 3 4 7 Tactical Retreats 8 | . 1 . . 2 5 Traps | -11 -10 -10 -9 -8 -7 ------- Run | Scr Mat Min Mat Mat Fac Traps Triggered 2 | . . . . . 2 Indirectly . | . . . . . . Trap Hack Attempts . | . . . . . . Triggered . | . . . . . . Disarmed . | . . . . . . Reprogrammed . | . . . . . . Reused . | . . . . . . Traps Extracted . | . . . . . . Installed . | . . . . . . Triggered . | . . . . . . Machines | -11 -10 -10 -9 -8 -7 ---------- Run | Scr Mat Min Mat Mat Fac Machines Disabled 10 | . . . 2 5 3 Max in Single Turn 3 | . . . 1 3 1 Garrison Access 2 | . . . . . 2 Machines Sabotaged . | . . . . . . Garrisons Compromised . | . . . . . . Overloaded Fab Kills . | . . . . . . Hacking | -11 -10 -10 -9 -8 -7 --------- Run | Scr Mat Min Mat Mat Fac Machines Accessed 18 | . 1 . 4 4 9 Terminals 15 | . 1 . 4 4 6 Fabricators . | . . . . . . Repair Stations . | . . . . . . Recycling Units 1 | . . . . . 1 Scanalyzers . | . . . . . . Garrison Access 2 | . . . . . 2 Total Hacks 42 | . 3 . 10 8 21 Successful 18 | . 1 . 3 5 9 Failed 24 | . 2 . 7 3 12 Catastrophic 2 | . . . . 1 1 Database Lockouts . | . . . . . . Manual 24 | . . . 10 . 14 Terminals 33 | . 3 . 10 8 12 Fabricators . | . . . . . . Repair Stations . | . . . . . . Recycling Units 4 | . . . . . 4 Scanalyzers . | . . . . . . Garrison Access 5 | . . . . . 5 Terminal Hacks 12 | . 1 . 2 5 4 Open DSF 1 | . . . . . 1 Branch Access Points 2 | . . . . 1 1 Terminal Index 2 | . . . 1 . 1 Locate Traps 2 | . . . . 1 1 Hauler Manifests 1 | . . . . 1 . Zone Layout 4 | . 1 . 1 2 . Fabricator Hacks . | . . . . . . Repair Station Hacks . | . . . . . . Recycling Unit Hacks . | . . . . . . Scanalyzer . | . . . . . . Garrison Access Hacks . | . . . . . . Unauthorized Hacks 6 | . . . 1 . 5 Terminals 2 | . . . 1 . 1 Track 2 | . . . 1 . 1 Fabricators . | . . . . . . Repair Stations . | . . . . . . Recycling Units 2 | . . . . . 2 Reject 1 | . . . . . 1 Mask 1 | . . . . . 1 Scanalyzers . | . . . . . . Garrison Access 2 | . . . . . 2 Jam 2 | . . . . . 2 Data Cores Recovered . | . . . . . . Used . | . . . . . . Hacking Detections 12 | . 1 . 3 2 6 Full Trace Events 1 | . . . . . 1 Feedback Events . | . . . . . . Feedback Blocked . | . . . . . . Robot Schematics Acquired . | . . . . . . Robots Built . | . . . . . . Authchips . | . . . . . . Time . | . . . . . . Total Robot Build Rating . | . . . . . . Part Schematics Acquired . | . . . . . . Parts Built . | . . . . . . Authchips . | . . . . . . Time . | . . . . . . Total Part Build Rating . | . . . . . . Parts Repaired . | . . . . . . Time . | . . . . . . Parts Recycled . | . . . . . . Recycled Matter . | . . . . . . Retrieved Matter . | . . . . . . Retrieved Components . | . . . . . . Parts Scanalyzed . | . . . . . . Part Schematics Acquired . | . . . . . . Parts Damaged . | . . . . . . Bothacking | -11 -10 -10 -9 -8 -7 ------------ Run | Scr Mat Min Mat Mat Fac Used RIF Installer . | . . . . . . Robots Hacked . | . . . . . . Non-combat . | . . . . . . Combat . | . . . . . . Robot Hacks Applied . | . . . . . . Relay Couplers Released 2 | . . . . . 2 Machine Destruction 2 | . . . . . 2 Fabnet Peak Effective % . | . . . . . . Robots Rewired . | . . . . . . Allies Hacked . | . . . . . . Hacks Repelled . | . . . . . . Allies | -11 -10 -10 -9 -8 -7 -------- Run | Scr Mat Min Mat Mat Fac Total Allies 1 | . . 1 . . . Largest Group 1 | . . 1 . . . Highest-Rated Group 31 | . . 31 . . . Highest-Rated Ally 31 | . . 31 . . . Total Orders . | . . . . . . Ally Attacks 19 | . . 19 . . . Total Damage 228 | . . 228 . . . Kills 6 | . . 6 . . . Allies Corrupted . | . . . . . . Allies Melted . | . . . . . . Intel | -11 -10 -10 -9 -8 -7 ------- Run | Scr Mat Min Mat Mat Fac Robot Analysis Total . | . . . . . . Derelict Logs Recovered . | . . . . . . Drone Launches . | . . . . . . Drone Recoveries . | . . . . . . Exploration | -11 -10 -10 -9 -8 -7 ------------- Run | Scr Mat Min Mat Mat Fac Turns Passed 4609 | 69 282 337 502 845 2574 Spaces Moved 1986 | 41 139 182 245 301 1078 Core 9 | 6 . . . . 3 Treads 1977 | 35 139 182 245 301 1075 Legs . | . . . . . . Wheels . | . . . . . . Hover . | . . . . . . Flight . | . . . . . . Fastest Speed 50 | 50 160 160 160 160 50 Average Speed 179 | 143 160 160 160 202 185 Slowest Speed 305 | 160 160 160 240 240 305 Overloaded Moves . | . . . . . . Propulsion Burnouts . | . . . . . . Robots Hopped . | . . . . . . Cave-ins Triggered . | . . . . . . Exploration Rate (%) 27 | 4 23 42 32 27 34 Regions Visited 5 Branch Regions 1 Pre-discovered Areas . | . . . . . . Known Exits Taken . | . . . . . . Unknown Exits Taken 5 | 1 1 1 1 1 . Scrap Searched 1 | . . 1 . . . Spaces Dug 1 | . . . . . 1 Terrain Destroyed 92 | . . . . 88 4 Melee . | . . . . . . Projectile 25 | . . . . 21 4 AOE 67 | . . . . 67 . Terrain Rammed . | . . . . . . Walls Destroyed . | . . . . . . Machines Disabled . | . . . . . . Actions | -11 -10 -10 -9 -8 -7 --------- Run | Scr Mat Min Mat Mat Fac Total 2569 | 48 172 201 305 431 1412 Wait 162 | . 6 1 13 33 109 Move 1981 | 40 138 181 244 300 1078 Hop . | . . . . . . Pick Up 46 | 2 6 3 7 7 21 Fast Attach 28 | 6 2 1 1 9 9 Attach 24 | . . . 5 3 16 Detach 15 | . 2 . 3 4 6 Swap 34 | . 1 1 . 2 30 Drop 34 | . 3 1 6 4 20 Fire 243 | . 14 13 26 69 121 Melee . | . . . . . . Ram . | . . . . . . Kick . | . . . . . . Crush . | . . . . . . Escape Stasis 2 | . . . . . 2 Rewire . | . . . . . . Trap . | . . . . . . Miscellaneous . | . . . . . . Route ------- -11/Scrapyard -10/Materials -10/Mines -9/Materials -8/Materials -7/Factory (discovered 3 exits: *Sto / Low x2) History --------- Turn | Location | Event 3 | -11/Scrapyard | Discovered new exit (range 16) 70 | -11/Scrapyard | Entered Materials 316 | -10/Materials | Build established: Mutant 336 | -10/Materials | Discovered new exit (range 7) 352 | -10/Materials | Entered Mines 360 | -10/Mines | Received a Mining Laser from a helpful Derelict 682 | -10/Mines | Discovered new exit (range 5) 689 | -10/Mines | Entered Materials 689 | -9/Materials | Evolved 2 slots: Utility x2 1107 | -9/Materials | Discovered new exit (range 16) 1191 | -9/Materials | Entered another Materials area 1191 | -8/Materials | Evolved 2 slots: Utility x2 1247 | -8/Materials | Build established: Scavenger-Mutant 1308 | -8/Materials | Lost 5 parts (1p2n2u) 1366 | -8/Materials | Core integrity fell below 50% 1869 | -8/Materials | Discovered new exit (range 13) 2036 | -8/Materials | Entered Factory 2036 | -7/Factory | Evolved 2 slots: Utility x1, Weapon x1 2158 | -7/Factory | Identified exit to DSF 2346 | -7/Factory | Discovered new exit (range 14) 2450 | -7/Factory | Build established: Scavenger-Skirmisher 3006 | -7/Factory | Lost 3 parts (1p2u) 3237 | -7/Factory | Build established: Tank 3494 | -7/Factory | Lost 3 parts (1p1n1u) 3875 | -7/Factory | Build established: Gunner 4409 | -7/Factory | Identified exit to Storage 4409 | -7/Factory | Identified exit to Lower Caves 4436 | -7/Factory | First assault squad dispatched 4584 | -7/Factory | Core integrity fell below 50% 4599 | -7/Factory | Released all parts (7) 4606 | -7/Factory | Core integrity fell below 20% 4610 | -7/Factory | Destroyed by G-47 Trooper with Particle Gun Last Messages --------------- 04581_ K-01 Serf collects debris. 04585_ Adv. Treads destroyed. 04586_ System corrupted: Heat flow error (+254). 04586_ R-06 Scavenger collects Com. Wheel. 04587_ L-41 Fighter heat damages core (-12). 04587_ Lgt. Nuclear Core destroyed. 04588_ K-01 Serf collects debris. 04589_ Critical hit (Burn: +37). 04590_ R-06 Scavenger collects Com. Battery. 04590_ Kinecellerator destroyed. 04591_ K-01 Serf collects debris. 04593_ Cld. Pulse Rifle destroyed. 04593_ R-06 Scavenger collects Hvy. Laser. 04599_ Released Cryofiber Web. 04599_ Released Lrg. Storage Unit. 04599_ Released Adv. Heat Sink. 04599_ Released Adv. Targeting Computer. 04599_ Released Lgt. Treads. 04599_ Released Cld. Pulse Rifle. 04599_ K-01 Serf collects debris. Map ----- +----------------------------------------------------+ | ?????????????????????????????????????????????????? | | ?????????????????????????????????????????????????? | | ?????????????????????????????????????????????????? | | ?????????????????????????????????????????????????? | | ?????????????????????????????????????????????????? | | ?????????????????????????????????????????????????? | | ?????????????????????????????????????????????????? | | ?????????????????????????????????????????????????? | | ?????????????????????????????????????????????????? | | ?????????????????????????????????????????????????? | | ?????????????????????????????????????????????????? | | ?????????????????????????????????????????????????? | | ?????????????????????????????????????????????????? | | ?????????????????????????????????????????????????? | | ?????????????????????????????????????????????????? | | ?????????????????????????????????????????????????? | | ?????????????????????????????????????????????????? | | ?????????????????????????????????????????????????? | | ?????????????????????????????????????????????????? | | ?????????????????????????????????????????????????? | | ???????????????????????#######???????????????????? | | ???????????????????????# #???????????????????? | | ???????????????????????# """ #???????????????????? | | ???????????????????????# """ #???????????????????? | | ???????????????????????# """[#???????????????????? | | ???????????????????????# @![!#???????????????????? | | ???????????????????????#gg[!!#???????????????????? | | ???????????????????##### ]!g=#???????????????????? | | ???????????????????# +=%ggk#???????????????????? | | ???????????????????# ### "%%!#???????????????????? | | ???????????????????????#="G"!#???????????????????? | | ???????????????????????#%"""!#???????????????????? | | ???????????????????????#! % =####+###????????????? | | ???????????????????????###+#### ##+######????? | | ??? ??????????????????### % " ????? | | ???? ?????????????????+ "%" ????? | | ????? ????????????????# " ???? | | ?????# ???????????????# ????? | | ?????# ??????????????# ######???????? | | ?????+ ?????????????# #????????????? | | ?????# #########+#### #????????????? | | ?????# #????????????? | | ??????? #????????????? | | ????????? #????????????? | | ?????????? ### T###????????????? | | ?????########+## #?####??????????????? | | ???? """ """ # #???????????????????? | | ??# """ """ # #???????????????????? | | ??# """ """ # #???????????????????? | | ??# |# #???????????????????? | +----------------------------------------------------+ Best States ------------- Heat Dissipation 55 Coolant Potential 50 Energy Generation 14 Energy Capacity 265 Matter Stores 300 Matter Capacity 300 Sight Range 18 Terrain Scan Range 14 Terrain Scan Density 110 Base Temperature (-) 100 Armor Coverage 600 Resistance: KI 20 Resistance: TH 10 Resistance: EM 15 Core Shielding 20 Weapon Cycling 15 Evasion (%) 50 Targeting Accuracy 8 Recoil Reduction 2 Kinecelleration 30 Item Schematics ----------------- None Robot Schematics ------------------ None Fabricated ------------ Nothing Alien Tech Used ----------------- None Achievements -------------- None Challenges ------------ None Game ------ Seed BiocellDecoyArmor Manual? 0 Play Time 00:47:46 Cumulative 24.4 hours Start 2022.12.08 @ 22:08:20 End 2022.12.09 @ 13:02:24 Sessions 3 Manual Loads 0 Difficulty Rogue Special Mode None Game No. 20 Rogue 20 Adventurer 0 Explorer 0 Win Type - Total 0 Types 0/0/0/0/0/0/0/0/0 Lore% 36 Gallery% 36 Achievement% 35 Wizard Run 0 Options --------- ASCII 0 Keyboard 1 Movement Vi Keybinds 0 Fullscreen 2 Font 18/Terminus Map View 76x50 Tactical HUD 1 Map Filters NONE Filters NONE Steam X RUN: e1b77494-e62a-467c-84d0-90a0d3f98ea2